bitfinex/quotes_BTCUSD_20240729
["timestamp","ask_amount","ask_price","bid_price","bid_amount"]
[1722283731266,0.02326706,67426.0,67423.0,0.148317]
[1722283731704,0.0649,67427.0,67423.0,0.148317]
[1722283731912,0.0649,67427.0,67422.0,0.148319]
[1722283732086,0.148313,67425.0,67421.0,0.000924]
[1722283732285,0.296623,67426.0,67421.0,0.000924]
[1722283732521,0.148313,67425.0,67421.0,0.000924]
[1722283734591,0.05966493,67424.0,67421.0,0.000924]
[1722283735464,0.02326769,67425.0,67421.0,0.000924]
[1722283735880,0.02326769,67425.0,67423.0,0.1379]
[1722283736083,0.154308,67427.0,67424.0,0.00083998]
[1722283736298,0.006,67427.0,67426.0,0.14831]
[1722283737024,0.006,67427.0,67426.0,0.444931]
[1722283737469,0.006,67427.0,67426.0,0.14831]
[1722283737813,0.006,67427.0,67425.0,0.148311]
[1722283738021,0.148319,67422.0,67421.0,0.000924]
[1722283738192,0.505558,67422.0,67421.0,0.000924]
[1722283739134,0.506558,67422.0,67421.0,0.000924]
[1722283739338,0.52982762,67422.0,67421.0,0.000924]
[1722283740396,0.506558,67422.0,67421.0,0.000924]
[1722283740690,0.803197,67422.0,67421.0,0.000924]
[1722283741282,0.804197,67422.0,67421.0,0.000924]
[1722283742279,0.9221493,67422.0,67421.0,0.000924]
[1722283742564,0.507558,67422.0,67421.0,0.000924]
[1722283743630,0.53082818,67422.0,67421.0,0.000924]
[1722283743809,0.507558,67422.0,67421.0,0.000924]
[1722283744003,0.446958,67422.0,67421.0,0.000924]
[1722283744197,0.150319,67422.0,67421.0,0.000924]
[1722283744408,0.002,67422.0,67421.0,0.000924]
[1722283745810,0.150319,67422.0,67421.0,0.000924]
[1722283746778,0.002,67422.0,67421.0,0.000924]
[1722283747025,0.02526907,67422.0,67421.0,0.000924]
[1722283747425,0.17358807,67422.0,67421.0,0.000924]
[1722283748052,0.002,67422.0,67421.0,0.000924]
[1722283748756,0.002,67422.0,67421.0,0.445888]
[1722283749058,0.002,67422.0,67421.0,0.149245]
[1722283749291,0.002,67422.0,67421.0,0.445888]
[1722283749671,0.002,67422.0,67421.0,0.149245]
[1722283750010,0.002,67422.0,67421.0,0.445888]
[1722283750850,0.002,67422.0,67421.0,0.742531]
[1722283751021,0.002,67422.0,67421.0,0.445888]
[1722283751449,0.02526813,67422.0,67421.0,0.445888]
[1722283752402,0.002,67422.0,67421.0,0.445888]
[1722283753619,0.002,67422.0,67421.0,0.742531]
[1722283753796,0.002,67422.0,67421.0,0.445888]
[1722283755424,0.02526796,67422.0,67421.0,0.445888]
[1722283756429,0.002,67422.0,67421.0,0.445888]
[1722283757428,0.002,67422.0,67421.0,0.586488]
[1722283760224,0.02526778,67422.0,67421.0,0.586488]
[1722283763707,0.02526778,67422.0,67421.0,0.883131]
[1722283763909,0.02526778,67422.0,67421.0,0.586488]
[1722283764853,0.02526778,67422.0,67421.0,0.883131]
[1722283765056,0.02526778,67422.0,67421.0,0.586488]
[1722283765057,0.002,67422.0,67421.0,0.586488]
[1722283765300,0.002,67422.0,67421.0,0.883131]
[1722283766380,0.002,67422.0,67421.0,1.179774]
[1722283766579,0.002,67422.0,67421.0,0.883131]
[1722283767954,0.02526705,67422.0,67421.0,0.883131]
[1722283768345,0.02526705,67422.0,67421.0,1.179774]
[1722283768454,0.02526705,67422.0,67421.0,0.883131]
[1722283769471,0.002,67422.0,67421.0,1.179774]
[1722283769785,0.002,67422.0,67421.0,1.32287339]
[1722283769989,0.002,67422.0,67421.0,1.43989196]
[1722283770264,0.002,67422.0,67421.0,1.44989196]
[1722283770418,0.002,67422.0,67421.0,1.43989196]
[1722283770853,0.001,67422.0,67421.0,1.43989196]
[1722283771198,0.4753,67437.0,67435.0,0.148289]
[1722283771414,0.01533529,67436.0,67432.0,0.148296]
[1722283771612,0.01533529,67435.0,67433.0,0.148294]
[1722283771809,0.01533529,67435.0,67430.0,0.2966]
[1722283771810,0.361363,67440.0,67434.0,0.00083998]
[1722283772072,0.148284,67438.0,67432.0,0.00083998]
[1722283772295,0.1433,67436.0,67421.0,0.143424]
[1722283772531,0.1433,67436.0,67421.0,0.000924]
[1722283772532,0.148304,67429.0,67421.0,0.000924]
[1722283772758,0.148304,67429.0,67422.0,0.296638]
[1722283772759,0.1433,67428.0,67422.0,0.296638]
[1722283772935,0.1433,67428.0,67424.0,0.148313]
[1722283773144,0.1433,67428.0,67425.0,0.148312]
[1722283774361,0.1483,67428.0,67425.0,0.148312]
[1722283775158,0.1483,67428.0,67423.0,0.296634]
[1722283775356,0.1570506,67428.0,67426.0,0.148309]
[1722283775561,0.0785506,67428.0,67426.0,0.148309]
[1722283775762,0.01533348,67427.0,67426.0,0.148309]
[1722283776094,0.01533348,67427.0,67425.0,0.148312]
[1722283776301,0.01533348,67426.0,67425.0,0.148312]
[1722283776634,0.10181685,67428.0,67425.0,0.148312]
[1722283777389,0.0785506,67428.0,67425.0,0.148312]
[1722283777788,0.0735506,67428.0,67425.0,0.148312]
[1722283778013,0.0735506,67428.0,67426.0,0.14831]
[1722283778216,0.0785506,67428.0,67426.0,0.14831]
[1722283778603,0.0785506,67428.0,67427.0,0.148308]
[1722283778604,0.005,67428.0,67427.0,0.148308]
[1722283778799,0.1397,67431.0,67427.0,0.148308]
[1722283778800,0.00873596,67430.0,67427.0,0.148308]
[1722283779024,0.288,67431.0,67427.0,0.148308]
[1722283779483,0.288,67431.0,67426.0,0.14831]
[1722283779675,0.005,67428.0,67426.0,0.14831]
[1722283780739,0.02826608,67428.0,67426.0,0.14831]
[1722283781308,0.0642,67427.0,67425.0,0.148311]
[1722283781714,0.0642,67427.0,67426.0,0.001]
[1722283782518,0.0642,67427.0,67426.0,0.14931]
[1722283782720,0.212502,67430.0,67426.0,0.14931]
[1722283783363,0.004,67427.0,67426.0,0.14831]
[1722283783566,0.212502,67430.0,67426.0,0.14831]
[1722283783776,0.32475492,67543.0,67421.0,0.383866]
[1722283783777,0.148291,67435.0,67430.0,0.148301]
[1722283783986,0.06690341,67434.0,67432.0,0.148297]
[1722283784303,0.4753,67437.0,67433.0,0.148295]
[1722283784591,0.06690329,67436.0,67433.0,0.148295]
[1722283784816,0.06690329,67436.0,67430.0,0.296603]
[1722283785009,0.06690329,67436.0,67431.0,0.148299]
[1722283785010,0.1409,67435.0,67431.0,0.148299]
[1722283785223,0.1409,67435.0,67423.0,0.0831]
[1722283785224,0.06690329,67434.0,67430.0,0.148301]
[1722283785469,0.289191,67435.0,67430.0,0.148301]
[1722283785711,0.06654149,67434.0,67430.0,0.148301]
[1722283786149,0.15982218,67434.0,67430.0,0.148301]
[1722283786331,0.09328069,67434.0,67430.0,0.148301]
[1722283786890,0.289191,67435.0,67430.0,0.148301]
[1722283787232,0.1409,67435.0,67431.0,0.148299]
[1722283787444,0.289192,67435.0,67430.0,0.148301]
[1722283787645,0.012,67434.0,67430.0,0.148301]
[1722283787783,0.289192,67435.0,67430.0,0.148301]
[1722283787981,0.148293,67434.0,67429.0,0.148304]
[1722283788425,0.309191,67435.0,67431.0,0.001]
[1722283788649,0.296191,67435.0,67431.0,0.001]
[1722283788822,0.02326515,67433.0,67430.0,0.148301]
[1722283789234,0.02326515,67433.0,67431.0,0.00083998]
[1722283789414,0.02326515,67433.0,67430.0,0.148301]
[1722283789775,0.02326515,67433.0,67431.0,0.00083998]
[1722283789934,0.02326515,67433.0,67429.0,0.001]
[1722283789935,0.06294718,67432.0,67429.0,0.001]
[1722283790771,0.154293,67434.0,67429.0,0.001]
[1722283791004,0.06294788,67433.0,67429.0,0.149303]
[1722283791519,0.21124288,67433.0,67429.0,0.001]
[1722283791739,0.006,67434.0,67430.0,0.148301]
[1722283792123,0.154293,67434.0,67429.0,0.149303]
[1722283792427,0.1409,67435.0,67430.0,0.148301]
[1722283792428,0.008,67433.0,67430.0,0.148301]
[1722283792812,0.008,67433.0,67431.0,0.001]
[1722283793172,0.03126539,67433.0,67430.0,0.148301]
[1722283793574,0.009,67433.0,67429.0,0.148303]
[1722283793957,0.148297,67432.0,67428.0,0.148305]
[1722283794164,0.009,67433.0,67428.0,0.148305]
[1722283794165,0.157295,67433.0,67428.0,0.148305]
[1722283794492,0.06279982,67432.0,67428.0,0.148305]
[1722283794895,0.1483,67431.0,67425.0,0.14831]
[1722283795097,0.148297,67432.0,67427.0,0.148308]
[1722283795305,0.35807949,67431.0,67426.0,0.14831]
[1722283795504,0.35807949,67431.0,67421.0,0.087224]
[1722283795505,0.148304,67429.0,67423.0,0.296632]
[1722283795673,0.148302,67430.0,67425.0,0.148312]
[1722283795881,0.06304449,67429.0,67426.0,0.14831]
[1722283796062,0.41528702,67433.0,67429.0,0.148303]
[1722283796063,0.09655521,67433.0,67429.0,0.148303]
[1722283796265,0.06304507,67432.0,67428.0,0.148306]
[1722283796567,0.06304507,67432.0,67426.0,0.29662]
[1722283796775,0.0153277,67431.0,67429.0,0.148303]
[1722283797017,0.0153277,67430.0,67429.0,0.148303]
[1722283799015,0.0153277,67430.0,67429.0,0.741519]
[1722283799242,0.0153277,67430.0,67429.0,0.742519]
[1722283799698,0.0153277,67430.0,67429.0,0.741519]
[1722283800211,0.0153277,67430.0,67429.0,0.743519]
[1722283800609,0.0153277,67430.0,67429.0,1.040127]
[1722283800854,0.006,67432.0,67431.0,0.444898]
[1722283801058,0.006,67432.0,67431.0,0.891197]
[1722283801256,0.00881192,67437.0,67431.0,0.891197]
[1722283801257,0.00881192,67437.0,67436.0,0.148288]
[1722283801469,0.16360645,67441.0,67437.0,0.148286]
[1722283801695,0.01532948,67440.0,67435.0,0.382878]
[1722283802013,0.02326391,67437.0,67432.0,0.0769]
[1722283802189,0.01532948,67436.0,67433.0,0.29659]
[1722283802391,0.01532948,67436.0,67432.0,0.0769]
[1722283802599,0.01532948,67436.0,67433.0,0.148294]
[1722283802972,0.01532948,67436.0,67432.0,0.225197]
[1722283803175,0.01532948,67436.0,67426.0,0.459818]
[1722283803176,0.148295,67433.0,67426.0,0.459818]
[1722283803352,0.01532948,67432.0,67430.0,0.148301]
[1722283803553,0.01532948,67431.0,67430.0,0.234601]
[1722283804157,0.01532948,67431.0,67430.0,0.531204]
[1722283804362,0.01532948,67431.0,67430.0,0.670604]
[1722283804569,0.01532948,67431.0,67430.0,0.967207]
[1722283804778,0.148284,67438.0,67433.0,0.148294]
[1722283804978,0.01532952,67437.0,67433.0,0.148294]
[1722283805320,0.01532952,67436.0,67433.0,0.148294]
[1722283805531,0.148284,67438.0,67433.0,0.148294]
[1722283805532,0.01532952,67435.0,67433.0,0.148294]
[1722283805688,0.09724037,67439.0,67433.0,0.148294]
[1722283805689,0.01532952,67434.0,67433.0,0.148294]
[1722283806525,0.01532952,67434.0,67432.0,0.148297]
[1722283806732,0.01532952,67433.0,67432.0,0.148297]
[1722283806930,0.01532952,67433.0,67431.0,0.148299]
[1722283807095,0.01532952,67432.0,67431.0,0.148299]
[1722283807512,0.03859476,67432.0,67431.0,0.148299]
[1722283808446,0.04459476,67432.0,67431.0,0.148299]
[1722283808651,0.02131803,67432.0,67431.0,0.148299]
[1722283809053,0.02131803,67432.0,67431.0,0.154299]
[1722283809054,0.02231803,67432.0,67431.0,0.154299]
[1722283811268,0.02231803,67432.0,67431.0,0.006]
[1722283812108,0.01631803,67432.0,67431.0,0.006]
[1722283812329,0.01631803,67432.0,67431.0,0.154299]
[1722283812534,0.01631803,67432.0,67431.0,0.155299]
[1722283814083,0.03958305,67432.0,67431.0,0.155299]
[1722283814288,0.01631803,67432.0,67431.0,0.007]
[1722283815824,0.03958305,67432.0,67431.0,0.007]
[1722283817718,0.01631803,67432.0,67431.0,0.007]
[1722283817917,0.01631803,67432.0,67428.0,0.296612]
[1722283817918,0.001,67432.0,67428.0,0.296612]
[1722283818298,0.001,67432.0,67429.0,0.148302]
[1722283819300,0.001,67432.0,67428.0,0.148306]
[1722283819515,0.001,67432.0,67429.0,0.001]
[1722283819869,0.0639,67431.0,67429.0,0.001]
[1722283820044,0.88424136,67430.0,67429.0,0.001]
[1722283820486,0.89956424,67430.0,67429.0,0.001]
[1722283820705,1.26006724,67430.0,67429.0,0.001]
[1722283821157,1.49174328,67430.0,67429.0,0.001]
[1722283821494,1.62972446,67430.0,67429.0,0.001]
[1722283821609,1.40316663,67430.0,67429.0,0.001]
[1722283822007,1.40295867,67430.0,67429.0,0.001]
[1722283822410,1.33923227,67430.0,67429.0,0.001]
[1722283822615,1.40305618,67430.0,67429.0,0.001]
[1722283823652,1.40905618,67430.0,67429.0,0.001]
[1722283823853,1.43492604,67430.0,67429.0,0.001]
[1722283825213,0.74152,67429.0,67428.0,0.000913]
[1722283825417,0.94837877,67429.0,67428.0,0.000913]
[1722283825682,0.94837877,67429.0,67428.0,0.001913]
[1722283826215,0.94837877,67429.0,67428.0,0.000913]
[1722283826829,0.0232677,67430.0,67428.0,0.000913]
[1722283827089,0.0232677,67430.0,67429.0,0.0863]
[1722283827605,0.15720176,67432.0,67429.0,0.0863]
[1722283828032,0.01532667,67431.0,67429.0,0.0863]
[1722283828234,0.01532667,67430.0,67428.0,0.000913]
[1722283829069,0.02632667,67430.0,67428.0,0.000913]
[1722283829298,0.01532667,67429.0,67428.0,0.000913]
[1722283831099,0.03859302,67429.0,67428.0,0.000913]
[1722283831299,0.01532667,67429.0,67428.0,0.000913]
[1722283832420,0.02532667,67429.0,67428.0,0.000913]
[1722283833000,0.17363067,67429.0,67428.0,0.000913]
[1722283833205,0.02532667,67429.0,67428.0,0.000913]
[1722283834390,0.04859297,67429.0,67428.0,0.000913]
[1722283834560,0.06259297,67429.0,67428.0,0.000913]
[1722283835689,0.03932667,67429.0,67428.0,0.000913]
[1722283838659,0.06259297,67429.0,67428.0,0.000913]
[1722283839640,0.50750497,67429.0,67428.0,0.000913]
[1722283839748,0.27417393,67429.0,67428.0,0.000913]
[1722283839955,0.57078193,67429.0,67428.0,0.000913]
[1722283840225,0.50750497,67429.0,67428.0,0.000913]
[1722283840437,0.5707818,67429.0,67428.0,0.000913]
[1722283840652,0.70137981,67429.0,67428.0,0.000913]
[1722283842244,0.70042497,67429.0,67428.0,0.000913]
[1722283843244,0.67715867,67429.0,67428.0,0.000913]
[1722283843847,0.97376667,67429.0,67428.0,0.000913]
[1722283844043,1.43739784,67429.0,67428.0,0.000913]
[1722283844692,1.05226667,67429.0,67428.0,0.000913]
[1722283844870,0.92166866,67429.0,67428.0,0.000913]
[1722283845456,0.92167982,67429.0,67428.0,0.000913]
[1722283846853,0.94494743,67429.0,67428.0,0.000913]
[1722283847058,0.92167982,67429.0,67428.0,0.000913]
[1722283848828,0.92179154,67429.0,67428.0,0.000913]
[1722283849274,1.01030962,67429.0,67428.0,0.000913]
[1722283849661,1.01030849,67429.0,67428.0,0.000913]
[1722283850303,1.03357619,67429.0,67428.0,0.000913]
[1722283851060,1.01030849,67429.0,67428.0,0.000913]
[1722283851281,1.15340788,67429.0,67428.0,0.000913]
[1722283852304,1.01049538,67429.0,67428.0,0.000913]
[1722283853068,0.92196394,67429.0,67428.0,0.000913]
[1722283854326,0.9452319,67429.0,67428.0,0.000913]
[1722283855476,1.05581902,67429.0,67428.0,0.000913]
[1722283855653,0.92188676,67429.0,67428.0,0.000913]
[1722283855851,1.02980581,67429.0,67428.0,0.000913]
[1722283857623,1.03064581,67429.0,67428.0,0.000913]
[1722283858586,1.05391411,67429.0,67428.0,0.000913]
[1722283858788,1.05388528,67429.0,67428.0,0.000913]
[1722283859044,1.35049328,67429.0,67428.0,0.000913]
[1722283859280,1.54652437,67429.0,67428.0,0.000913]
[1722283859462,1.64243887,67429.0,67428.0,0.000913]
[1722283860308,1.63243887,67429.0,67428.0,0.000913]
[1722283860692,1.54952437,67429.0,67428.0,0.000913]
[1722283860943,1.53552437,67429.0,67428.0,0.000913]
[1722283861911,1.52252437,67429.0,67428.0,0.000913]
[1722283862151,1.46001311,67429.0,67428.0,0.000913]
[1722283862324,1.55649007,67429.0,67428.0,0.000913]
[1722283862525,1.57049007,67429.0,67428.0,0.000913]
[1722283862667,1.55649007,67429.0,67428.0,0.000913]
[1722283863072,1.58449007,67429.0,67428.0,0.000913]
[1722283863272,1.55122017,67429.0,67428.0,0.000913]
[1722283863475,1.56122017,67429.0,67428.0,0.000913]
[1722283863889,1.50922017,67429.0,67428.0,0.000913]
[1722283864561,1.80582817,67429.0,67428.0,0.000913]
[1722283864776,1.50922017,67429.0,67428.0,0.000913]
[1722283865466,1.60960354,67429.0,67428.0,0.000913]
[1722283866845,1.64687349,67429.0,67428.0,0.000913]
[1722283867051,1.15085505,67429.0,67428.0,0.000913]
[1722283867351,1.16485505,67429.0,67428.0,0.067213]
[1722283867552,1.16485505,67429.0,67428.0,0.000913]
[1722283867893,1.44083181,67429.0,67428.0,0.000913]
[1722283868294,1.30413181,67429.0,67428.0,0.000913]
[1722283868696,1.16549958,67429.0,67428.0,0.080313]
[1722283868900,1.16549958,67429.0,67428.0,0.142013]
[1722283869121,1.16549958,67429.0,67428.0,0.000913]
[1722283869533,1.53829897,67429.0,67428.0,0.000913]
[1722283869929,1.54829897,67429.0,67428.0,0.000913]
[1722283870133,1.82410477,67429.0,67428.0,0.000913]
[1722283870305,1.81410477,67429.0,67428.0,0.000913]
[1722283871184,1.68139836,67429.0,67428.0,0.000913]
[1722283871588,1.81410477,67429.0,67428.0,0.000913]
[1722283871868,1.80083482,67429.0,67428.0,0.000913]
[1722283872057,1.790847,67429.0,67428.0,0.000913]
[1722283874527,2.087455,67429.0,67428.0,0.000913]
[1722283874726,2.110455,67429.0,67428.0,0.000913]
[1722283874936,2.1337246,67429.0,67428.0,0.000913]
[1722283875335,2.13367461,67429.0,67428.0,0.000913]
[1722283876017,2.00110182,67429.0,67428.0,0.000913]
[1722283876404,1.53812483,67429.0,67428.0,0.000913]
[1722283877487,1.83473283,67429.0,67428.0,0.000913]
[1722283878576,1.53796197,67429.0,67428.0,0.000913]
[1722283879707,1.56123159,67429.0,67428.0,0.000913]
[1722283880378,1.85783959,67429.0,67428.0,0.000913]
[1722283880570,2.00093898,67429.0,67428.0,0.000913]
[1722283881006,2.11028425,67429.0,67428.0,0.000913]
[1722283881563,2.0709107,67429.0,67428.0,0.000913]
[1722283882009,2.0702605,67429.0,67428.0,0.000913]
[1722283882691,2.1702605,67429.0,67428.0,0.000913]
[1722283884157,2.19353038,67429.0,67428.0,0.000913]
[1722283884378,2.1702605,67429.0,67428.0,0.000913]
[1722283885152,2.16986201,67429.0,67428.0,0.000913]
[1722283887851,2.19313182,67429.0,67428.0,0.000913]
[1722283888058,2.16986201,67429.0,67428.0,0.000913]
[1722283888459,2.16973533,67429.0,67428.0,0.000913]
[1722283891847,1.87470206,67429.0,67428.0,0.000913]
[1722283892094,1.984726,67429.0,67428.0,0.000913]
[1722283892307,1.96145566,67429.0,67428.0,0.000913]
[1722283893976,1.9614352,67429.0,67428.0,0.000913]
[1722283894974,2.0248352,67429.0,67428.0,0.000913]
[1722283895213,2.20137213,67429.0,67428.0,0.000913]
[1722283895938,2.1781025,67429.0,67428.0,0.000913]
[1722283896626,0.541258,67422.0,67421.0,0.000924]
[1722283896806,1.03120977,67422.0,67421.0,0.000924]
[1722283896937,1.89160616,67422.0,67421.0,0.000924]
[1722283897965,1.82710616,67422.0,67421.0,0.000924]
[1722283898143,1.81710616,67422.0,67421.0,0.000924]
[1722283898838,1.96374795,67422.0,67421.0,0.000924]
[1722283899002,1.75125612,67422.0,67421.0,0.000924]
[1722283899413,1.88389791,67422.0,67421.0,0.000924]
[1722283899781,1.75125612,67422.0,67421.0,0.000924]
[1722283899985,1.88389791,67422.0,67421.0,0.000924]
[1722283900187,2.0269973,67422.0,67421.0,0.000924]
[1722283900383,1.89087338,67422.0,67421.0,0.000924]
[1722283900583,2.02354905,67422.0,67421.0,0.000924]
[1722283900784,1.89087338,67422.0,67421.0,0.000924]
[1722283901040,1.90087338,67422.0,67421.0,0.000924]
[1722283901244,1.90087218,67422.0,67421.0,0.000924]
[1722283901467,2.03353601,67422.0,67421.0,0.000924]
[1722283901669,1.90087218,67422.0,67421.0,0.000924]
[1722283901846,1.90091977,67422.0,67421.0,0.000924]
[1722283902081,1.89092135,67422.0,67421.0,0.000924]
[1722283903264,1.90092135,67422.0,67421.0,0.000924]
[1722283903820,1.89092135,67422.0,67421.0,0.000924]
[1722283904223,1.90092135,67422.0,67421.0,0.000924]
[1722283905099,1.90102154,67422.0,67421.0,0.000924]
[1722283905295,1.91502154,67422.0,67421.0,0.000924]
[1722283905497,1.91502154,67422.0,67403.0,0.009185]
[1722283905498,0.74175,67408.0,67407.0,0.0603]
[1722283905702,0.89932682,67408.0,67407.0,0.0603]
[1722283905901,1.33912621,67408.0,67407.0,0.0603]
[1722283906198,0.741795,67404.0,67403.0,0.088585]
[1722283906465,1.19608982,67404.0,67403.0,0.088585]
[1722283906666,1.20285216,67404.0,67403.0,0.148885]
[1722283907559,1.31331746,67404.0,67403.0,0.148885]
[1722283907938,1.20285216,67404.0,67403.0,0.148885]
[1722283908408,1.20294058,67404.0,67403.0,0.148885]
[1722283908563,1.23374427,67404.0,67403.0,0.148885]
[1722283908770,1.34415714,67404.0,67403.0,0.148885]
[1722283908980,1.3366289,67404.0,67403.0,0.148885]
[1722283909135,1.2503289,67404.0,67403.0,0.148885]
[1722283909328,1.13991603,67404.0,67403.0,0.148885]
[1722283909763,1.15291603,67404.0,67403.0,0.148885]
[1722283911143,0.85619803,67404.0,67403.0,0.148885]
[1722283911570,0.8001378,67404.0,67403.0,0.148885]
[1722283911773,0.85669944,67404.0,67403.0,0.148885]
[1722283912012,0.55998144,67404.0,67403.0,0.148885]
[1722283912149,0.0583428,67404.0,67403.0,0.148885]
[1722283912350,0.04303779,67404.0,67403.0,0.148885]
[1722283912552,0.19139679,67404.0,67403.0,0.148885]
[1722283912775,0.79337276,67404.0,67403.0,0.148885]
[1722283912978,0.49039113,67404.0,67403.0,0.148885]
[1722283914267,0.60807383,67404.0,67403.0,0.148885]
[1722283914701,0.49039113,67404.0,67403.0,0.148885]
[1722283915263,0.50339113,67404.0,67403.0,0.148885]
[1722283916045,0.20667313,67404.0,67403.0,0.148885]
[1722283916500,0.50339113,67404.0,67403.0,0.148885]
[1722283917101,0.49039113,67404.0,67403.0,0.148885]
[1722283917319,0.79610913,67404.0,67403.0,0.009185]
[1722283917777,0.77283368,67404.0,67403.0,0.009185]
[1722283918221,0.47611568,67404.0,67403.0,0.009185]
[1722283918756,0.17039768,67404.0,67403.0,0.009185]
[1722283918961,0.17039768,67404.0,67403.0,0.154585]
[1722283918962,0.18439768,67404.0,67403.0,0.154585]
[1722283920340,0.04503868,67404.0,67403.0,0.154585]
[1722283920551,0.03603868,67404.0,67403.0,0.154585]
[1722283920974,0.06731314,67404.0,67403.0,0.154585]
[1722283921202,0.03604166,67404.0,67403.0,0.154585]
[1722283921408,0.04304166,67404.0,67403.0,0.154585]
[1722283922319,0.04304166,67404.0,67403.0,0.15563197]
[1722283922544,0.02904166,67404.0,67403.0,0.154585]
[1722283922787,0.04304166,67404.0,67403.0,0.154585]
[1722283923196,0.02904166,67404.0,67403.0,0.154585]
[1722283923629,0.04304166,67404.0,67403.0,0.154585]
[1722283924504,0.06631612,67404.0,67403.0,0.154585]
[1722283926465,0.06631678,67404.0,67403.0,0.154585]
[1722283931393,0.06631678,67404.0,67403.0,0.009185]
[1722283931394,0.26671614,67404.0,67403.0,0.009185]
[1722283931616,0.51139378,67404.0,67403.0,0.009185]
[1722283931869,0.54528325,67404.0,67403.0,0.009185]
[1722283934326,1.21640064,67404.0,67403.0,0.009185]
[1722283934528,1.34419408,67404.0,67403.0,0.009185]
[1722283934726,1.45460739,67404.0,67403.0,0.009185]
[1722283935048,1.34381684,67404.0,67403.0,0.009185]
[1722283935224,1.35911961,67404.0,67403.0,0.009185]
[1722283936024,1.44746361,67404.0,67403.0,0.009185]
[1722283936225,1.43216084,67404.0,67403.0,0.009185]
[1722283936434,1.07306515,67404.0,67403.0,0.009185]
[1722283936674,0.98472115,67404.0,67403.0,0.009185]
[1722283938110,0.98510823,67404.0,67403.0,0.009185]
[1722283939100,0.296744,67398.0,67396.0,0.0629]
[1722283939307,0.148374,67397.0,67396.0,0.0629]
[1722283939523,0.15511101,67397.0,67396.0,0.0629]
[1722283941575,0.00673701,67397.0,67396.0,0.0629]
[1722283941778,0.15511101,67397.0,67396.0,0.0629]
[1722283941965,0.148374,67397.0,67396.0,0.1401]
[1722283942171,0.15508223,67397.0,67396.0,0.1401]
[1722283942592,0.15508223,67397.0,67396.0,0.0629]
[1722283942791,0.17835913,67397.0,67396.0,0.0629]
[1722283942997,0.02998513,67397.0,67396.0,0.0629]
[1722283943197,0.00670823,67397.0,67396.0,0.0629]
[1722283943393,0.01564171,67397.0,67396.0,0.0629]
[1722283943595,0.148371,67399.0,67396.0,0.0629]
[1722283943596,0.014,67398.0,67396.0,0.0629]
[1722283943802,0.00670823,67397.0,67396.0,0.0629]
[1722283944427,0.00670823,67397.0,67396.0,0.289476]
[1722283944639,0.148361,67403.0,67398.0,0.148372]
[1722283944873,0.148361,67403.0,67399.0,0.0627]
[1722283945065,0.15737424,67403.0,67399.0,0.0627]
[1722283946213,0.00901324,67403.0,67399.0,0.21107]
[1722283946409,0.18065132,67403.0,67399.0,0.0627]
[1722283946612,0.17163808,67403.0,67399.0,0.0627]
[1722283946828,0.148361,67403.0,67399.0,0.0627]
[1722283947029,0.005,67403.0,67399.0,0.0627]
[1722283947252,0.02827586,67403.0,67399.0,0.0627]
[1722283947456,0.04227586,67403.0,67400.0,0.00108828]
[1722283947658,0.04227586,67403.0,67399.0,0.0627]
[1722283947826,0.005,67403.0,67399.0,0.0627]
[1722283948034,0.019,67403.0,67400.0,0.14949999]
[1722283948588,0.014,67403.0,67400.0,0.148367]
[1722283948703,0.019,67403.0,67400.0,0.14927851]
[1722283948904,0.01530414,67402.0,67399.0,0.21107]
[1722283949103,0.01530414,67401.0,67399.0,0.21107]
[1722283949388,0.01530414,67400.0,67399.0,0.21107]
[1722283949592,0.01530414,67402.0,67399.0,0.21107]
[1722283949991,0.00670041,67401.0,67400.0,0.1494684]
[1722283950193,0.02200455,67401.0,67400.0,0.148367]
[1722283950344,0.02200455,67401.0,67400.0,0.75054555]
[1722283950545,0.01530414,67401.0,67400.0,0.75054555]
[1722283950758,0.01530414,67402.0,67400.0,0.36751055]
[1722283950962,0.02200441,67401.0,67400.0,0.36751055]
[1722283951169,0.04527991,67401.0,67400.0,0.36751055]
[1722283951366,0.01530414,67401.0,67400.0,0.36751055]
[1722283951564,0.01530414,67403.0,67400.0,0.36751055]
[1722283951888,0.58581454,67409.0,67400.0,0.36751055]
[1722283951889,0.56371163,67409.0,67401.0,0.59039765]
[1722283952062,0.56371163,67409.0,67408.0,1.04719355]
[1722283952063,0.4753,67409.0,67408.0,1.04719355]
[1722283952668,1.0,67420.0,67411.0,0.296686]
[1722283952868,1.0,67420.0,67408.0,0.30544355]
[1722283952869,0.14833,67418.0,67413.0,0.148338]
[1722283953069,0.01530676,67417.0,67413.0,0.148338]
[1722283953291,0.14833,67418.0,67413.0,0.148338]
[1722283953292,0.01530676,67416.0,67413.0,0.148338]
[1722283953498,0.148328,67418.0,67413.0,0.148338]
[1722283953751,0.01530466,67417.0,67413.0,0.148338]
[1722283953963,0.148328,67418.0,67413.0,0.148338]
[1722283953964,0.01530466,67416.0,67413.0,0.148338]
[1722283954134,0.01530466,67415.0,67412.0,0.14834]
[1722283954372,0.148331,67417.0,67412.0,0.14834]
[1722283954579,0.01530432,67416.0,67412.0,0.14834]
[1722283954786,0.01530432,67415.0,67412.0,0.14834]
[1722283954998,0.01530432,67414.0,67412.0,0.14834]
[1722283955201,0.00672412,67415.0,67411.0,0.148343]
[1722283955373,0.296653,67419.0,67411.0,0.148343]
[1722283955589,0.00672412,67414.0,67411.0,0.148343]
[1722283955774,0.148331,67417.0,67411.0,0.148343]
[1722283955931,0.01530428,67416.0,67413.0,0.148338]
[1722283956131,0.01930428,67415.0,67413.0,0.148338]
[1722283956334,0.004,67415.0,67413.0,0.148338]
[1722283956693,0.148329,67418.0,67413.0,0.148338]
[1722283956909,0.01530419,67417.0,67413.0,0.148339]
[1722283957131,0.01530419,67416.0,67413.0,0.148339]
[1722283957351,0.01530419,67415.0,67414.0,0.0607]
[1722283957557,1.00906642,67420.0,67419.0,0.583078]
[1722283957558,1.0,67420.0,67419.0,0.583078]